Cogmind - Beta 17.1 @@@ ROGUE MODE // 2026.09.13 @ 22:28:43 Player: fai Result: Assimilated 0b10! Performance ------------- Evolutions (9) 4500 Regions Visited (25) 5000 Robots Destroyed (149) 745 Value Destroyed (14025) 14025 Prototype IDs (7) 140 Alien Tech Used (0) 0 Bonus (46301) 46301 TOTAL SCORE: 70711 Bonus ------- Triggered High Security 500 High Alert Combat Kills 2019 Follower Combat Kills 10764 Prayed to X0-1V1 5000 Major X0-1V1 Interference 10600 Entered Garrisons 2000 Used RIF Installer 5500 Met MAIN.C 5000 Used 0b10 Conduit 2000 Win 3000 Friendly Fire -82 Cogmind --------- Core Integrity 187/1470 Matter 209/800 Energy 99/100 System Corruption 14% Temperature Cool (0) Movement Core (50) Location 0b10 Command Parts ------- > --- POWER (2) -------- (None) > --- PROPULSION (6) --- (None) > --- UTILITY (12) ----- Relay Coupler [NC] (10) Relay Coupler [C] (4) Relay Coupler [Hunter] (3) Relay Coupler [Behemoth] (2) Relay Coupler [Proto] (7) > --- WEAPON (5) ------- (None) > --- INVENTORY (5) ---- Particle Reactor Quantum Reactor Remote Datajack Peak State ------------ > --- POWER ------------ Light Antimatter Reactor Quantum Reactor > --- PROPULSION ------- Enhanced Armored Heavy Treads Armored Huge Wheel Armored Huge Wheel > --- UTILITY ---------- High-capacity Storage Unit Centrium Medium Armor Plating Advanced Force Field Relay Coupler [NC] Relay Coupler [C] Relay Coupler [Sentry] Relay Coupler [Demolisher] Relay Coupler [Specialist] Relay Coupler [Hunter] Relay Coupler [Behemoth] Relay Coupler [Proto] X0-1V1's Piety Tracker > --- WEAPON ----------- Gamma Rifle Fusion Bomb Launcher Advanced Remote Datajack Power Sword Kinetic Spear > --- INVENTORY -------- Particle Reactor Micro Antimatter Reactor Compact Wheel Armored Huge Wheel Matter Compressor Centrium Medium Armor Plating Relay Coupler [C] Relay Coupler [C] Relay Coupler [C] Relay Coupler [Sentry] Relay Coupler [Specialist] Relay Coupler [Specialist] Relay Coupler [Behemoth] Relay Coupler [Proto] Relay Coupler [Proto] Remote Datajack Advanced Remote Datajack [Rating: 173] Favorites ----------- Power Micro Antimatter Reactor Engine Ion Engine Power Core Micro Nuclear Core Reactor Micro Antimatter Reactor Propulsion Wheel Treads Armored Heavy Treads Leg Biometal Leg Wheel Wheel Hover Unit Gravmag System Utility High-capacity Storage Unit Device X0-1V1's Piety Tracker Storage High-capacity Storage Unit Processor Improved Targeting Computer Hackware Relay Coupler [Sentry] Protection Centrium Medium Armor Plating Weapon Remote Datajack Energy Gun Particle Gun Energy Cannon Nova Cannon Ballistic Gun Flak Gun Ballistic Cannon Linear Accelerator Launcher Fusion Bomb Launcher Special Weapon Remote Datajack Impact Weapon Heavy Flail Slashing Weapon Power Sword Piercing Weapon Enhanced Force Lance Build | -11 -10 -9 -8 -8 -8 -7 -7 -7 -7 -6 -6 -6 -6 -5 -5 -4 -4 -3 -3 -2 -2 -1 -1 -1 -1 ------- Run | Yrd Mat Mat Mat Gar Mat Fac Gar Fac Gar Fac Gar Fac Gar Fac Gar Fac Gar Res Gar Res Gar Acc Gar Acc Com Slots Evolved 18 | . . 2 2 . . 2 . . . 2 . . . 2 . 2 . 2 . 2 . 2 . . . Power . | . . . . . . . . . . . . . . . . . . . . . . . . . . Propulsion 4 | . . 1 . . . 1 . . . 1 . . . . . . . 1 . . . . . . . Utility 10 | . . 1 1 . . 1 . . . 1 . . . 1 . 1 . 1 . 1 . 2 . . . Weapon 4 | . . . 1 . . . . . . . . . . 1 . 1 . . . 1 . . . . . Parts Attached 254 | 6 11 9 4 12 10 5 11 7 32 4 24 1 13 3 14 4 14 8 11 9 16 6 9 5 6 Power 21 | 1 1 2 . 2 2 . . 1 2 1 2 . . . 2 . 1 . 1 . . . 1 1 1 Engine 4 | 1 . 2 . 1 . . . . . . . . . . . . . . . . . . . . . Core 9 | . 1 . . 1 2 . . . 2 1 1 . . . 1 . . . . . . . . . . Reactor 8 | . . . . . . . . 1 . . 1 . . . 1 . 1 . 1 . . . 1 1 1 Propulsion 59 | 2 2 4 1 3 3 3 1 2 11 1 5 . 1 2 2 1 2 3 1 3 4 . . 1 1 Treads 4 | . . . . . . . . . . . 1 . . . . . 1 . 1 . 1 . . . . Leg 8 | . . . . . . . . . 5 1 1 . . . . . . 1 . . . . . . . Wheel 42 | 2 2 4 1 3 3 3 1 2 2 . 3 . . 2 2 1 1 2 . 3 3 . . 1 1 Hover 5 | . . . . . . . . . 4 . . . 1 . . . . . . . . . . . . Flight . | . . . . . . . . . . . . . . . . . . . . . . . . . . Utility 129 | 1 4 1 1 4 4 . 8 3 13 2 11 1 9 1 8 3 9 5 9 6 12 4 7 2 1 Device 19 | . 2 . . 1 1 . 2 1 2 . 1 1 1 . 2 . . 2 . 1 1 . 1 . . Storage 5 | 1 2 . . . . . . . . . . . 1 . . . . . 1 . . . . . . Processor 2 | . . . 1 . . . . . 1 . . . . . . . . . . . . . . . . Hackware 94 | . . . . 1 3 . 6 1 10 2 10 . 7 1 6 3 8 3 8 4 11 3 5 2 . Protection 9 | . . 1 . 2 . . . 1 . . . . . . . . 1 . . 1 . 1 1 . 1 Artifact . | . . . . . . . . . . . . . . . . . . . . . . . . . . Weapon 45 | 2 4 2 2 3 1 2 2 1 6 . 6 . 3 . 2 . 2 . . . . 2 1 1 3 Energy Gun 9 | 1 1 2 . 1 . . 1 . . . . . . . . . . . . . . . 1 . 2 Energy Cannon 3 | . . . . . . . . . . . 1 . . . . . 1 . . . . . . 1 . Ballistic Gun 11 | 1 . . 2 1 1 1 . . 4 . 1 . . . . . . . . . . . . . . Ballistic Cannon 5 | . 2 . . . . . . . . . . . 1 . 2 . . . . . . . . . . Launcher 3 | . 1 . . . . . . . . . 1 . 1 . . . . . . . . . . . . Special Weapon 8 | . . . . 1 . . . 1 2 . 2 . . . . . . . . . . 1 . . 1 Impact Weapon 1 | . . . . . . 1 . . . . . . . . . . . . . . . . . . . Slashing Weapon 3 | . . . . . . . 1 . . . . . 1 . . . 1 . . . . . . . . Piercing Weapon 2 | . . . . . . . . . . . 1 . . . . . . . . . . 1 . . . Special Melee Weapon . | . . . . . . . . . . . . . . . . . . . . . . . . . . Unidentified Prototypes 3 | . 1 1 . . . . . . . . . . . . . . . . . . . 1 . . . Corrupted Parts 1 | . . . . . . . . . . . . . . . . . . . . . . . . . 1 System Corruption 3 | . . . . . . . . . . . . . . . . . . . . . . . . . 3 Parts Lost 88 | . 3 2 . 16 5 . 4 4 10 . 1 . 3 . 3 1 4 2 . 1 2 2 2 3 20 Power 7 | . . 1 . 1 1 . . . . . . . . . . . 1 . . . . . . 1 2 Propulsion 30 | . 1 . . 6 . . 3 1 4 . 1 . 1 . 1 1 2 2 . 1 1 . . 1 4 Utility 21 | . . . . 4 1 . 1 2 1 . . . 1 . 2 . . . . . . 1 1 . 7 Weapon 30 | . 2 1 . 5 3 . . 1 5 . . . 1 . . . 1 . . . 1 1 1 1 7 Highest Loss Streak 17 | . 2 1 . 12 4 . 2 3 5 . 1 . 1 . 1 1 3 1 . 1 1 2 1 2 17 To Critical Strikes 3 | . . . . . . . . . 1 . . . . . . . 1 . . . . . 1 . . Average Backups 15 | 1 7 9 9 10 17 15 17 16 17 15 18 20 18 14 15 17 15 12 15 17 17 17 17 16 8 Power . | . 1 . . . 1 1 1 1 . . . . . . . . . . . . . . . 2 2 Propulsion 1 | 1 4 3 3 1 . . . . . 1 . . . . . 1 . . . . 2 3 2 1 . Utility 10 | . . 2 2 4 11 11 12 12 14 12 14 16 14 10 10 11 10 9 11 12 11 12 11 9 4 Weapon 1 | . 1 2 3 2 1 1 1 . . 2 1 1 1 2 2 3 2 2 1 2 1 1 . 1 . Tool/Special . | . . . . . . . . . . . . . . . . . . . . . . . . . . Unused Backups 32 | . . . 1 . 1 . 1 2 8 . 4 . 2 . . . 2 . 2 . 3 . 2 . 4 Power 3 | . . . . . 1 . . . 1 . . . . . . . . . . . . . . . 1 Propulsion 3 | . . . . . . . . . 1 . . . . . . . . . 1 . 1 . . . . Utility 24 | . . . . . . . 1 1 6 . 4 . 2 . . . 2 . 1 . 2 . 2 . 3 Weapon 2 | . . . 1 . . . . 1 . . . . . . . . . . . . . . . . . Tool/Special . | . . . . . . . . . . . . . . . . . . . . . . . . . . Average Slot Usage (%) 86 | . 90 89 94 95 84 76 86 82 81 82 91 91 92 83 82 79 84 88 93 89 84 77 77 82 81 Core 2 | . 11 2 . 2 8 7 7 4 7 6 2 . . . . 5 . . . . . . . . . Reactor 4 | . . . . . . . . 1 . . 3 6 6 5 5 5 7 9 9 8 8 8 8 7 6 Treads 2 | . . . . . . . . . . . 3 6 6 5 . . 5 9 9 6 4 4 4 3 . Leg 1 | . . . . . . . . . 6 2 6 6 6 5 . . . . 4 4 . . . . . Wheel 14 | . 28 31 27 25 14 22 22 15 8 13 14 13 7 8 16 14 11 10 9 11 12 8 8 8 13 Device 5 | . 8 11 9 9 8 7 7 6 2 4 1 2 . 5 5 6 . 4 6 7 8 6 7 8 6 Storage 6 | . 14 11 9 9 9 7 7 7 7 6 6 6 6 5 5 5 5 4 7 4 4 4 4 4 3 Processor 1 | . . . 9 9 . . . . 4 . . . . . . . . . . . . . . . . Hackware 21 | . . . . 3 17 15 19 21 20 27 30 29 31 24 23 26 30 24 23 23 26 24 27 31 30 Protection 1 | . . 3 9 3 . . . 1 . . . . . . . . 2 4 1 4 . 3 4 4 4 Energy Gun 2 | . 8 14 5 6 7 . . 7 . . . . . . . . . . . . . . . 3 6 Energy Cannon 2 | . . . . . . . . . . . 1 . . . . . 6 9 9 8 8 6 1 . 3 Ballistic Gun 2 | . 2 . 7 9 6 6 3 . 5 6 7 6 1 . . . . . . . . . . . . Ballistic Cannon 2 | . 10 6 9 4 . . . . . . . . 3 5 8 5 . . . . . . . . . Special Weapon 4 | . . . . 4 9 7 7 7 6 6 3 5 5 5 5 5 5 4 4 4 4 4 4 4 3 Slashing Weapon 2 | . . . . . . . 1 7 5 6 2 . . . . . 4 4 4 4 4 4 4 4 3 Piercing Weapon 1 | . . . . . . . . . . . 3 6 6 5 5 5 2 . . . . 1 3 3 . Peak Build Rating 173 | 6 22 24 31 40 42 45 56 64 66 66 86 88 95 94 96 97 107 119 125 138 145 163 164 173 154 Average Rating 82 | 5 12 21 27 32 38 41 47 58 50 60 72 81 85 89 87 92 92 108 118 125 131 150 157 160 136 On Entrance 76 | . 6 22 22 31 39 36 45 53 55 62 59 83 88 91 88 90 96 96 119 123 114 144 140 164 134 Avg Prop Armor Cover (%) 17 | . . . . . . . . . 13 6 17 26 28 26 19 . 19 18 21 14 14 9 10 13 . Naked Turns . | . . . . . . . . . . . . . . . . . . . . . . . . . . Heaviest Build 161 | 13 62 54 60 61 56 56 57 70 65 56 72 72 72 68 85 78 95 111 161 118 122 144 136 123 134 Greatest Support 98 | 32 32 56 50 50 50 66 66 70 70 70 74 46 46 40 86 86 80 44 34 60 74 70 70 98 96 Greatest Overweight (x) 4 | . 1 1 1 2 2 1 1 . 2 . 1 1 2 2 1 1 2 3 4 3 2 2 1 1 2 Average Overweight (x) 1 | . . . 1 1 1 . . . . . . 1 1 1 . . 1 2 3 2 1 1 1 1 . Largest Inventory Capacity 20 | 8 20 20 20 20 20 20 20 20 20 20 20 20 20 20 20 20 20 20 20 20 20 20 20 20 20 Average Capacity 19 | 7 16 20 20 20 20 20 20 20 20 20 20 20 20 20 20 20 20 20 20 20 20 20 20 20 18 Most Carried 20 | 5 10 11 11 18 20 16 20 20 20 20 20 20 20 15 20 20 20 14 20 19 20 20 20 20 12 Average Carried 15 | 2 7 9 9 10 17 15 17 17 18 16 18 19 18 14 16 18 16 12 15 16 17 18 18 17 8 Final Capacity 20 | 8 20 20 20 20 20 20 20 20 20 20 20 20 20 20 20 20 20 20 20 20 20 20 20 20 5 Final Carried 20 | 5 10 10 10 18 16 15 18 14 17 20 20 20 15 14 19 19 15 12 20 16 20 17 19 11 3 Class Distribution -------------------- 29% | Botlord-Mutant 26% | Botlord-Tank 15% | Bothacker-Mutant 8% | Mutant 5% | Bothacker-Gunner 3% | Commander-Mutant 3% | Commander-Gunner Dominant Class ---------------- Mutant | -10/Materials Mutant | -9/Materials Scavenger-Mutant | -8/Materials Gunner | -8/Garrison Bothacker-Gunner | -8/Materials Bothacker-Mutant | -7/Factory Bothacker-Mutant | -7/Garrison Bothacker-Mutant | -7/Factory Botlord-Mutant | -7/Garrison Botlord-Mutant | -6/Factory Botlord-Mutant | -6/Garrison Botlord-Mutant | -6/Factory Botlord-Mutant | -6/Garrison Commander-Mutant | -5/Factory Commander-Gunner | -5/Garrison Commander-Mutant | -4/Factory Botlord-Tank | -4/Garrison Botlord-Tank | -3/Research Botlord-Tank | -3/Garrison Botlord-Tank | -2/Research Botlord-Tank | -2/Garrison Botlord-Tank | -1/Access Botlord-Mutant | -1/Garrison Botlord-Mutant | -1/Access Botlord-Tank | -1/Command Resources | -11 -10 -9 -8 -8 -8 -7 -7 -7 -7 -6 -6 -6 -6 -5 -5 -4 -4 -3 -3 -2 -2 -1 -1 -1 -1 ----------- Run | Yrd Mat Mat Mat Gar Mat Fac Gar Fac Gar Fac Gar Fac Gar Fac Gar Fac Gar Res Gar Res Gar Acc Gar Acc Com Matter Collected 9507 | 291 143 557 88 733 308 68 383 344 1071 45 388 . 425 154 365 115 476 217 675 119 365 261 1104 510 302 Remotely . | . . . . . . . . . . . . . . . . . . . . . . . . . . Salvage Created 7573 | 161 330 598 84 1008 121 68 367 104 740 116 167 . 303 127 366 48 73 353 657 311 540 181 199 232 319 Parts 339 | 10 23 34 3 57 11 5 4 3 32 3 15 . 9 9 19 7 3 13 13 14 19 3 13 6 11 Haulers Intercepted 1 | . . . . . . . . . . . . . . . . . . . . . . . . 1 . Recyclers Shooed 2 | . . 1 . . . . . . . . . . . . . . . 1 . . . . . . . Parts Field Recycled . | . . . . . . . . . . . . . . . . . . . . . . . . . . Retrieved Matter . | . . . . . . . . . . . . . . . . . . . . . . . . . . Parts Self-Destructed . | . . . . . . . . . . . . . . . . . . . . . . . . . . Prevented . | . . . . . . . . . . . . . . . . . . . . . . . . . . Parts Restored . | . . . . . . . . . . . . . . . . . . . . . . . . . . Kills | -11 -10 -9 -8 -8 -8 -7 -7 -7 -7 -6 -6 -6 -6 -5 -5 -4 -4 -3 -3 -2 -2 -1 -1 -1 -1 ------- Run | Yrd Mat Mat Mat Gar Mat Fac Gar Fac Gar Fac Gar Fac Gar Fac Gar Fac Gar Res Gar Res Gar Acc Gar Acc Com Combat Hostiles Destroyed 106 | . 11 10 2 29 . . 2 3 9 . 6 . 3 . 8 . 1 1 2 . 3 1 6 3 6 Melee 14 | . . . . . . . 1 3 1 . . . 2 . . . 1 1 1 . . . 1 1 2 Guns 46 | . 4 7 1 20 . . . . 8 . 5 . 1 . . . . . . . . . . . . Cannons 16 | . 3 3 1 4 . . . . . . 1 . . . 1 . . . . . 3 . . . . AOE 29 | . 4 . . 5 . . . . . . . . . . 7 . . . 1 . . 1 5 2 4 Classes Destroyed 16 | 3 4 3 . 3 . . . . . . . . . . . . . . . . . . . 2 1 Worker 7 | 1 . . . . 2 1 . . . . . . . . . 1 . 1 . . . . . . 1 Builder 9 | . 2 1 . . 1 . . . . . . . . 1 . 1 . 1 . 2 . . . . . Tunneler 6 | 3 . . . . . . . . . . . . . . . 1 . . . 2 . . . . . Hauler 1 | . . . . . . . . . . . . . . . . . . . . . . . . 1 . Recycler 12 | 1 . 2 . . 1 1 . . . 1 . . . 1 . . . 2 . 2 . 1 . . . Operator 2 | . . 2 . . . . . . . . . . . . . . . . . . . . . . . Watcher 2 | . 1 1 . . . . . . . . . . . . . . . . . . . . . . . Swarmer 28 | . 3 . . 9 . . . 2 1 . 1 . . . 8 . . . . . . . 4 . . Grunt 39 | . 8 5 1 11 . . 2 . 6 . . . . . 2 . . . . . . 1 . . 3 Brawler 2 | . . . . 2 . . . . . . . . . . . . . . . . . . . . . Duelist 2 | . . 1 . . . . . . . . . . . . . . . . . . . . 1 . . Protector 1 | . . . . . . . . . . . . . . . . . . . . . . . . . 1 Sentry 10 | . . 4 1 4 . . . . . . . . . . . . 1 . . . . . . . . Hunter 6 | . . . . 3 . . . . . . . . . . . . . 1 1 . . . . . 1 Programmer 21 | . . . . 1 . . . 1 2 . 5 . 3 . . . . . 1 . 3 1 1 2 1 Heavy 1 | . . . . . . . . . . . . . . . . . . . . . . . . 1 . Best Kill Streak 11 | 2 4 4 1 11 2 2 1 2 4 1 3 . 3 2 7 3 1 3 1 3 2 2 5 2 3 Combat Bots Only 11 | . 3 2 1 11 . . 1 2 4 . 3 . 3 . 7 . 1 1 1 . 2 1 5 2 3 Max Kills in Single Turn 5 | 1 1 2 1 3 1 1 1 1 1 1 2 . 1 1 5 1 1 1 1 1 1 2 5 2 3 Gunslinging 1 | . . . . 1 . . . . . . 1 . . . . . . . . . . . . . . Exploded 5 | . 1 . . 3 . . . . . . . . . . 4 . . . 1 . . 1 5 2 3 Melee 1 | . . . . . . . 1 1 1 . . . 1 . . . 1 1 1 . . . 1 1 1 Uniques/NPCs Destroyed . | . . . . . . . . . . . . . . . . . . . . . . . . . . Combat | -11 -10 -9 -8 -8 -8 -7 -7 -7 -7 -6 -6 -6 -6 -5 -5 -4 -4 -3 -3 -2 -2 -1 -1 -1 -1 -------- Run | Yrd Mat Mat Mat Gar Mat Fac Gar Fac Gar Fac Gar Fac Gar Fac Gar Fac Gar Res Gar Res Gar Acc Gar Acc Com Hostile Shots Fired 1139 | . 54 30 8 172 13 . 40 94 128 2 89 1 54 1 48 8 56 18 19 11 23 45 33 62 130 Missed 314 | . 10 10 1 38 6 . 11 36 25 1 25 . 11 . 15 2 20 3 5 6 7 17 9 24 32 Hits 825 | . 44 20 7 134 7 . 29 58 103 1 64 1 43 1 33 6 36 15 14 5 16 28 24 38 98 Melee 5 | . . 1 . . 2 . 1 . . . . . . . . . . . . . . . . . 1 Projectile 820 | . 44 19 7 134 5 . 28 58 103 1 64 1 43 1 33 6 36 15 14 5 16 28 24 38 97 AOE 19 | . . . . . . . . . . 1 . . . . . . 1 . 1 . . . 2 . 14 Critical Strikes 38 | . . . . 4 . . 2 . 5 1 4 . 3 . 1 . 3 3 . . . 2 1 2 7 Part Disruptions 2 | . . . . . . . . . . 1 . . . . . . . . . . . . . 1 . Damage Taken 15284 | . 573 367 125 1594 483 . 402 980 1366 74 736 20 573 19 759 120 691 435 172 118 204 460 429 643 3941 Core 3074 | . 116 103 37 285 70 . 64 133 197 7 132 . 81 . 102 . 98 1 11 11 35 10 37 42 1502 Absorbed by Shields 3168 | . . . . 128 . . . . 137 . 273 . 97 . 67 . 24 8 185 121 212 437 452 550 477 Ignored by Resistances 38 | . . . . . . . . . . . . . . . . . . . . . . . . 38 . Core Remaining (%) 70 | 100 74 97 . . 18 . . . 30 . . . 69 . 88 . 90 . 98 . 96 . . . 12 Volleys Fired 782 | 17 36 36 6 79 33 11 26 14 66 7 29 6 30 2 40 11 29 17 24 20 40 24 74 47 58 Largest 3 | 2 2 2 2 3 2 1 1 1 2 1 2 1 2 1 2 1 1 1 2 1 2 1 1 1 3 Hottest 235 | 60 80 115 80 125 85 25 25 85 66 5 141 5 141 5 108 5 113 113 203 5 203 52 113 105 235 Shots Fired 1003 | 34 56 72 11 152 49 11 26 14 85 7 43 6 36 2 42 11 29 17 26 20 47 24 75 51 57 Gun 396 | 34 32 51 7 114 33 9 5 4 68 . 25 . 5 . . . . . . . . . 2 4 3 Cannon 134 | . 8 21 4 30 . . . . . . 3 . 7 . 6 . 6 3 4 . 13 . 7 2 20 Launcher 51 | . 16 . . 2 4 . . . . . 1 . 1 . 3 . . . 1 . 1 3 1 13 5 Special 422 | . . . . 6 12 2 21 10 17 7 14 6 23 2 33 11 23 14 21 20 33 21 65 32 29 Kinetic 310 | 17 20 21 8 106 16 9 5 . 68 . 25 . 5 . 6 . 4 . . . . . . . . Thermal 212 | 17 20 51 3 36 17 . . 4 . . 3 . 7 . . . 2 3 4 . 13 . 7 2 23 Explosive 51 | . 16 . . 2 4 . . . . . 1 . 1 . 3 . . . 1 . 1 3 1 13 5 Electromagnetic 8 | . . . . 2 . . . . . . . . . . . . . . . . . . 2 4 . Robot Hit Streak 18 | 4 6 7 9 14 16 10 12 2 7 8 16 4 17 4 14 10 9 8 13 7 18 5 10 8 13 Robot Miss Streak 7 | 3 4 4 3 7 4 1 3 1 4 1 5 1 3 . 2 1 4 2 1 1 1 2 2 2 1 Penetration Max 1 | . . . . . . . . . 1 . . . . . . . . . . . . . . . . Secondary Targets 12 | . 1 1 . 7 . . . . . . 3 . . . . . . . . . . . . . . Max Gunslinging Chain 1 | . 1 1 . 1 . . . . . . 1 . . . . . . . . . . . . . . Shots Hit Robots 898 | 17 32 49 10 122 29 9 39 12 79 8 39 5 54 4 42 15 18 20 69 21 51 17 61 34 42 Core Hits 413 | 6 22 39 5 124 7 3 7 3 21 1 27 . 12 2 17 1 1 4 19 2 11 17 10 35 17 Critical Kills . | . . . . . . . . . . . . . . . . . . . . . . . . . . Critical Parts Destroyed 3 | . . . . . . . . . 3 . . . . . . . . . . . . . . . . Critical Strikes 29 | . 2 5 3 3 . . 1 2 3 1 . . . 1 3 . . 1 . . . . 1 1 2 Burn 5 | . . 2 2 . . . . 1 . . . . . . . . . . . . . . . . . Destroy 3 | . . . . . . . . . 3 . . . . . . . . . . . . . . . . Blast 9 | . 2 3 1 3 . . . . . . . . . . . . . . . . . . . . . Sever 8 | . . . . . . . 1 1 . 1 . . . . . . . 1 . . . . 1 1 2 Impale 4 | . . . . . . . . . . . . . . 1 3 . . . . . . . . . . Melee Attacks 306 | . . . . . . 1 35 20 33 3 8 . 27 3 15 5 7 20 52 6 20 2 16 17 16 Impact 21 | . . . . . . 1 20 . . . . . . . . . . . . . . . . . . Slashing 225 | . . . . . . . 15 20 33 3 3 . . . . . 5 20 52 6 20 2 14 16 16 Piercing 60 | . . . . . . . . . . . 5 . 27 3 15 5 2 . . . . . 2 1 . Sneak Attacks 25 | . . . . . . . . . . 1 . . . 2 . 5 . 6 . 6 . . 1 . 4 Combat Hostiles . | . . . . . . . . . . . . . . . . . . . . . . . . . . Follow-up Attacks 3 | . . . . . . . . . . . . . . . . . . . . . . . 2 1 . Damage Inflicted 25464 | 213 760 897 161 2387 213 136 1162 197 2265 100 722 . 1812 174 1682 431 36 571 3091 469 1196 715 1232 2334 2508 Guns 5029 | 213 295 501 91 1680 213 136 20 18 1095 . 561 . 145 . . . . . . . . . . . 61 Cannons 1979 | . 110 247 70 285 . . . . . . 146 . 145 . 172 . . . 137 . 407 . 103 . 157 Explosions 7768 | . 355 149 . 414 . . . . . . 15 . 13 . 962 . . . 168 . 17 715 903 2215 1842 Melee 10680 | . . . . . . . 1142 179 1170 100 . . 1509 174 548 431 36 571 2786 469 772 . 226 119 448 Ramming 8 | . . . . 8 . . . . . . . . . . . . . . . . . . . . . Kinetic 4424 | 102 221 247 123 1514 88 136 20 . 1095 . 561 . 145 . 172 . . . . . . . . . . Thermal 2625 | 111 184 650 38 427 125 . . 18 . . 146 . 145 . . . . . 137 . 407 . 103 . 134 Explosive 7619 | . 355 . . 414 . . . . . . 15 . 13 . 962 . . . 168 . 17 715 903 2215 1842 Electromagnetic 24 | . . . . 24 . . . . . . . . . . . . . . . . . . . . . Impact 420 | . . . . . . . 420 . . . . . . . . . . . . . . . . . . Slashing 7487 | . . . . . . . 722 179 1170 100 . . . . . . 36 571 2786 469 772 . 147 87 448 Piercing 2773 | . . . . . . . . . . . . . 1509 174 548 431 . . . . . . 79 32 . Entropic 84 | . . . . . . . . . . . . . . . . . . . . . . . . . 84 Highest Corruption 39 | . 4 . . 6 12 . 32 33 39 . 4 4 7 . 1 . . . 1 . 2 3 21 24 24 Average Corruption 17 | . 3 . . 6 6 . 29 32 38 . 4 4 6 . 1 . . . 1 . 1 2 18 22 21 Corruption Purged . | . . . . . . . . . . . . . . . . . . . . . . . . . . Corruption Blocked . | . . . . . . . . . . . . . . . . . . . . . . . . . . Effects 308 | . 15 . . . 24 . 22 33 77 . 7 6 6 . 1 . . . 2 . 5 6 31 42 31 Message Errors 75 | . 5 . . . 3 . 9 8 20 . 2 2 2 . . . . . 1 . . 1 8 9 5 Matter Fused 76 | . 3 . . . 7 . 7 9 16 . 1 3 1 . . . . . 1 . 3 1 5 11 8 Heat Flow Errors 34 | . 1 . . . 2 . 3 3 6 . 2 1 2 . 1 . . . . . . 1 5 3 4 Energy Discharges 29 | . 1 . . . 2 . 1 1 11 . 1 . . . . . . . . . 1 . 5 4 2 Parts Rejected 10 | . . . . . . . 1 1 4 . . . . . . . . . . . . . 1 3 . Parts Fused 2 | . . . . . . . . . 1 . . . . . . . . . . . . . . 1 . Data Loss (minor) 26 | . 1 . . . 5 . . 3 10 . . . . . . . . . . . . 1 1 3 2 Data Loss (major) 10 | . 1 . . . 1 . 1 . 2 . . . . . . . . . . . 1 2 . . 2 Misfires 11 | . 1 . . . 1 . . 1 . . . . 1 . . . . . . . . . 1 4 2 Alerts 9 | . 1 . . . 2 . . 2 . . 1 . . . . . . . . . . . 1 2 . Misdirections 14 | . . . . . . . . 4 3 . . . . . . . . . . . . . 4 2 1 Weapon Failures 12 | . 1 . . . 1 . . 1 4 . . . . . . . . . . . . . . . 5 Overload Shots . | . . . . . . . . . . . . . . . . . . . . . . . . . . Overflow Damage 981 | . 8 12 . 66 . . 26 . . . . . 69 . 82 170 . 148 77 204 . . . 24 95 Projectiles 17 | . . 9 . . . . . . . . . . . . . . . . . . . . . . 8 Explosions 209 | . 8 3 . 66 . . . . . . . . . . 68 . . . . . . . . 24 40 Melee 755 | . . . . . . . 26 . . . . . 69 . 14 170 . 148 77 204 . . . . 47 Knockbacks 7 | . . 2 . 3 . . 2 . . . . . . . . . . . . . . . . . . Impact 1 | . . . . . . . 1 . . . . . . . . . . . . . . . . . . Kinetic 5 | . . 2 . 3 . . . . . . . . . . . . . . . . . . . . . Secondary 1 | . . . . . . . 1 . . . . . . . . . . . . . . . . . . Self-Inflicted Damage 863 | . 76 55 . 127 . . . . . . 41 . 46 . 83 . . . . . . 47 45 195 148 Shots 20 | . 3 1 . 2 . . . . . . 1 . 1 . 2 . . . . . . 1 1 4 4 Rammed 2 | . 1 . . 1 . . . . . . . . . . . . . . . . . . . . . Targets Rammed 2 | . 1 . . 1 . . . . . . . . . . . . . . . . . . . . . Kicked . | . . . . . . . . . . . . . . . . . . . . . . . . . . Crushed . | . . . . . . . . . . . . . . . . . . . . . . . . . . Highest Temperature 362 | . 241 309 36 178 255 . 264 153 269 2 296 84 285 . 153 . 88 180 234 . 293 83 362 150 294 Average Temperature 74 | . 61 62 16 49 44 . 104 45 70 2 115 56 105 . 46 . 37 74 123 . 119 21 137 55 105 Received Heat Transfer 2328 | . 234 87 45 303 27 . 162 309 395 33 77 9 86 9 71 . 134 96 5 20 12 16 12 8 178 Effects 3 | . . . . . 1 . . . . . . . 2 . . . . . . . . . . . . Energy Bleed 1 | . . . . . 1 . . . . . . . . . . . . . . . . . . . . Interference 2 | . . . . . . . . . . . . . 2 . . . . . . . . . . . . Siege Activations . | . . . . . . . . . . . . . . . . . . . . . . . . . . Martial Activations . | . . . . . . . . . . . . . . . . . . . . . . . . . . Shielding Activations . | . . . . . . . . . . . . . . . . . . . . . . . . . . Robots Disrupted . | . . . . . . . . . . . . . . . . . . . . . . . . . . Combat Hostiles . | . . . . . . . . . . . . . . . . . . . . . . . . . . Robots Corrupted 2 | . . . . . . . 2 . . . . . . . . . . . . . . . . . . Combat Hostiles 1 | . . . . . . . 1 . . . . . . . . . . . . . . . . . . Parts Fried 2 | . . . . . . . 2 . . . . . . . . . . . . . . . . . . Impact Corruptions 3 | . . . . . . . 3 . . . . . . . . . . . . . . . . . . Robots Melted 1 | . . . . 1 . . . . . . . . . . . . . . . . . . . . . Combat Hostiles . | . . . . . . . . . . . . . . . . . . . . . . . . . . Parts Melted 9 | . . 1 1 . . . . . . . . . 1 . . . . . . . 3 . . 3 . Heat Transferred 4683 | 250 472 1408 259 1017 296 . . 150 . . 111 . 54 . . . . . 111 . 333 . 74 . 148 Parts Sabotaged . | . . . . . . . . . . . . . . . . . . . . . . . . . . Parts Stolen . | . . . . . . . . . . . . . . . . . . . . . . . . . . Parts Stripped . | . . . . . . . . . . . . . . . . . . . . . . . . . . Power Chain Reactions . | . . . . . . . . . . . . . . . . . . . . . . . . . . Alert | -11 -10 -9 -8 -8 -8 -7 -7 -7 -7 -6 -6 -6 -6 -5 -5 -4 -4 -3 -3 -2 -2 -1 -1 -1 -1 ------- Run | Yrd Mat Mat Mat Gar Mat Fac Gar Fac Gar Fac Gar Fac Gar Fac Gar Fac Gar Res Gar Res Gar Acc Gar Acc Com Maximum Alert Level 5 | . . 2 1 3 2 . 3 2 4 3 4 3 4 3 5 4 4 3 5 3 4 4 5 5 5 Low Security (%) 13 | 100 100 17 40 2 79 100 12 . . . . . . . . . . . . . . . . . . Level 1 5 | . . 24 59 27 12 . 4 24 4 . . . . . . . . . . . . . . . . Level 2 17 | . . 58 . 10 8 . 53 75 42 44 22 7 4 . 12 . . . 29 . 15 . . . . Level 3 26 | . . . . 58 . . 29 . 35 55 39 92 45 100 15 56 25 100 3 100 13 57 5 . . Level 4 23 | . . . . . . . . . 17 . 38 . 50 . 6 43 75 . 61 . 70 42 22 24 . Level 5 11 | . . . . . . . . . . . . . . . 64 . . . 6 . . . 71 24 100 High Security 2 | . . . . . . . . . . . . . . . . . . . . . . . . 50 . Max Security . | . . . . . . . . . . . . . . . . . . . . . . . . . . Sterilizations 1 | . . . . . 1 . . . . . . . . . . . . . . . . . . . . Peak Influence 3657 | 10 101 496 306 1046 509 166 901 559 1241 773 1450 780 1472 874 2191 1150 1508 904 1609 940 1448 1333 2159 3657 2469 Initial 2320 | . . 9 196 182 509 . 108 472 391 651 541 760 539 772 583 1150 744 848 543 904 613 868 1044 1295 2320 Average 985 | 1 32 327 216 639 172 56 590 457 771 707 1036 735 1133 839 1552 1072 1299 836 1165 855 1152 1057 1788 2362 2309 Influence Increases 20302 | 25 377 671 184 1064 262 247 953 513 1090 252 1019 100 1203 122 1818 533 844 290 1346 204 1175 883 1395 3058 674 Destroy 0b10 Robot/C 7590 | . 220 200 80 600 140 60 420 240 420 100 420 40 620 40 660 210 330 105 405 45 375 285 510 840 225 Destroy 0b10 Robot/NC 365 | 25 15 35 5 10 20 10 15 . 15 5 . . 10 10 10 24 . 16 24 24 12 16 4 48 12 Destroy Leader 966 | . 62 82 30 30 40 10 40 50 30 30 20 10 30 10 30 72 16 16 48 . 40 40 48 158 24 Allied During Kill 5258 | . . 2 7 8 43 17 220 39 79 36 260 50 466 60 698 89 241 129 410 69 427 338 521 1005 44 Successful Hack 168 | . 11 5 4 7 9 . 28 46 . . . . . . 16 2 11 . . . 11 18 . . . Disable Machine 306 | . 15 45 . . . . . 75 . 45 . . 15 . 15 24 . . . . . . . 48 24 Anti-Garrison Action 2186 | . . . . 200 . . 150 . 350 . 300 . . . 238 . 190 . 341 . 190 . 114 113 . Destroy Structure 2360 | . 39 34 13 59 10 2 65 33 16 21 19 . 17 2 91 112 20 24 118 66 120 186 150 846 297 Partial Spotted 45 | . . . 30 15 . . . . . . . . . . . . . . . . . . . . . Lose Combat Pursuer 642 | . 15 . 15 135 . . 15 30 180 15 . . 45 . 60 . 36 . . . . . 48 . 48 Miscellaneous 416 | . . 268 . . . 148 . . . . . . . . . . . . . . . . . . . Influence Decreases 17882 | 25 353 228 371 298 1308 92 207 855 408 720 342 780 501 760 461 1661 399 1074 461 995 545 1026 541 1592 1879 Entered New Map 10380 | . . 15 271 98 537 . 47 429 168 590 232 690 231 700 251 1041 319 660 181 705 205 580 261 864 1305 Time Decay 2666 | 25 323 193 80 . 361 46 . 246 . 90 . 90 . 60 . 120 . 214 . 120 . 246 . 198 254 Lost Part 880 | . 30 20 . 160 50 . 40 40 100 . 10 . 30 . 30 10 40 20 . 10 20 20 20 30 200 Lost Ally 3656 | . . . 20 40 60 46 120 140 140 40 100 . 240 . 180 490 40 180 280 160 320 180 260 500 120 Purge Threat 300 | . . . . . 300 . . . . . . . . . . . . . . . . . . . . Squads Dispatched 55 | . 2 4 . . 1 1 . 6 . 2 . 1 . . . 2 . 2 . 2 . 2 . 25 5 Investigation 5 | . 1 . . . . 1 . 1 . 1 . 1 . . . . . . . . . . . . . Extermination 5 | . . . . . . . . 1 . . . . . . . . . . . . . 1 . 1 2 Reinforcement 17 | . 1 3 . . 1 . . 4 . . . . . . . 1 . 2 . . . 1 . 4 . Assault 25 | . . 1 . . . . . . . . . . . . . 1 . . . 2 . . . 18 3 Garrison 3 | . . . . . . . . . . 1 . . . . . . . . . . . . . 2 . Intercept . | . . . . . . . . . . . . . . . . . . . . . . . . . . Searches Triggered . | . . . . . . . . . . . . . . . . . . . . . . . . . . Construction Impeded 2 | . . . . . . . . 1 . . . . . . . 1 . . . . . . . . . Haulers Reinforced 2 | . . . . . . . . 1 . . . . . . . . . 1 . . . . . . . Active Scanning Responses . | . . . . . . . . . . . . . . . . . . . . . . . . . . Cargo Convoy Interrupts . | . . . . . . . . . . . . . . . . . . . . . . . . . . Stealth | -11 -10 -9 -8 -8 -8 -7 -7 -7 -7 -6 -6 -6 -6 -5 -5 -4 -4 -3 -3 -2 -2 -1 -1 -1 -1 --------- Run | Yrd Mat Mat Mat Gar Mat Fac Gar Fac Gar Fac Gar Fac Gar Fac Gar Fac Gar Res Gar Res Gar Acc Gar Acc Com Distress Signals 13 | . 1 1 . 1 2 1 . . . . . 1 . . . 4 . . . . . . 1 1 . Communications Jammed 191 | . . . . . . . . . . . . . . . . 2 . . 19 24 . 16 . 90 40 Distress Signals 190 | . . . . . . . . . . . . . . . . 1 . . 19 24 . 16 . 90 40 Times Spotted 652 | . 20 17 9 48 15 2 28 20 44 7 30 4 34 3 39 7 39 15 30 17 44 29 51 69 31 Peak Tracking Total 12 | . 5 5 7 7 4 1 4 9 6 2 7 3 6 2 9 4 8 4 12 3 5 7 8 9 7 Tactical Retreats 30 | . 1 . 1 3 . . 1 1 10 1 . . 1 . 2 . 2 . . . . . 3 . 4 Traps | -11 -10 -9 -8 -8 -8 -7 -7 -7 -7 -6 -6 -6 -6 -5 -5 -4 -4 -3 -3 -2 -2 -1 -1 -1 -1 ------- Run | Yrd Mat Mat Mat Gar Mat Fac Gar Fac Gar Fac Gar Fac Gar Fac Gar Fac Gar Res Gar Res Gar Acc Gar Acc Com Traps Triggered 73 | . 2 1 . 11 2 . 8 . 9 . 6 . 8 . 5 . 1 2 4 . 7 1 2 2 2 Indirectly . | . . . . . . . . . . . . . . . . . . . . . . . . . . Trap Hack Attempts . | . . . . . . . . . . . . . . . . . . . . . . . . . . Triggered . | . . . . . . . . . . . . . . . . . . . . . . . . . . Disarmed . | . . . . . . . . . . . . . . . . . . . . . . . . . . Reprogrammed . | . . . . . . . . . . . . . . . . . . . . . . . . . . Reused . | . . . . . . . . . . . . . . . . . . . . . . . . . . Traps Extracted . | . . . . . . . . . . . . . . . . . . . . . . . . . . Installed . | . . . . . . . . . . . . . . . . . . . . . . . . . . Triggered . | . . . . . . . . . . . . . . . . . . . . . . . . . . Machines | -11 -10 -9 -8 -8 -8 -7 -7 -7 -7 -6 -6 -6 -6 -5 -5 -4 -4 -3 -3 -2 -2 -1 -1 -1 -1 ---------- Run | Yrd Mat Mat Mat Gar Mat Fac Gar Fac Gar Fac Gar Fac Gar Fac Gar Fac Gar Res Gar Res Gar Acc Gar Acc Com Machines Disabled 70 | . 1 3 . 5 . . 3 5 5 3 6 . 1 . 6 2 5 . 8 . 6 . 3 5 3 Max in Single Turn 3 | . 1 3 . 2 . . 1 . 1 . 1 . 1 . 1 . 1 . 1 . 1 . 1 1 2 Garrison Access 3 | . . . . . 1 . . . . . . . . . . . . . . . . 1 . 1 . Garrison Relay 43 | . . . . 3 . . 3 . 5 . 6 . . . 5 . 5 . 7 . 5 . 4 . . Phase Generator 3 | . . . . 1 . . . . . . . . . . . . . . 1 . . . 1 . . Machines Repaired . | . . . . . . . . . . . . . . . . . . . . . . . . . . Machines Dismantled . | . . . . . . . . . . . . . . . . . . . . . . . . . . Machines Sabotaged . | . . . . . . . . . . . . . . . . . . . . . . . . . . Overloaded Fab Kills . | . . . . . . . . . . . . . . . . . . . . . . . . . . Hacking | -11 -10 -9 -8 -8 -8 -7 -7 -7 -7 -6 -6 -6 -6 -5 -5 -4 -4 -3 -3 -2 -2 -1 -1 -1 -1 --------- Run | Yrd Mat Mat Mat Gar Mat Fac Gar Fac Gar Fac Gar Fac Gar Fac Gar Fac Gar Res Gar Res Gar Acc Gar Acc Com Machines Accessed 51 | . 5 2 2 2 5 1 4 4 2 2 2 1 2 1 1 3 1 1 1 1 2 4 1 . 1 Terminals 34 | . 5 1 1 2 4 . 4 2 2 1 2 . 2 . 1 1 1 . 1 . 2 . 1 . 1 Fabricators . | . . . . . . . . . . . . . . . . . . . . . . . . . . Repair Stations . | . . . . . . . . . . . . . . . . . . . . . . . . . . Recycling Units . | . . . . . . . . . . . . . . . . . . . . . . . . . . Scanalyzers 6 | . . 1 . . 1 . . 1 . . . . . . . 1 . . . . . 2 . . . Garrison Access 11 | . . . 1 . . 1 . 1 . 1 . 1 . 1 . 1 . 1 . 1 . 2 . . . Total Hacks 80 | . 9 5 3 2 12 1 6 7 3 2 2 1 4 1 1 6 1 1 1 1 3 4 1 . 3 Successful 42 | . 5 4 1 1 9 1 2 4 . 1 . 1 . 1 1 3 1 1 . 1 1 3 . . 1 Failed 38 | . 4 1 2 1 3 . 4 3 3 1 2 . 4 . . 3 . . 1 . 2 1 1 . 2 Catastrophic 11 | . . . . 1 1 . 1 1 . . . . 2 . . 1 . . 1 . 1 1 1 . . Database Lockouts . | . . . . . . . . . . . . . . . . . . . . . . . . . . Manual 31 | . 10 2 2 . 9 . . 4 . 1 . . . . . 3 . . . . . . . . . Terminals 57 | . 9 2 2 2 9 . 6 4 3 1 2 . 4 . 1 3 1 . 1 . 3 . 1 . 3 Fabricators . | . . . . . . . . . . . . . . . . . . . . . . . . . . Repair Stations . | . . . . . . . . . . . . . . . . . . . . . . . . . . Recycling Units . | . . . . . . . . . . . . . . . . . . . . . . . . . . Scanalyzers 12 | . . 3 . . 3 . . 2 . . . . . . . 2 . . . . . 2 . . . Garrison Access 11 | . . . 1 . . 1 . 1 . 1 . 1 . 1 . 1 . 1 . 1 . 2 . . . Terminal Hacks 10 | . 1 . . 1 2 . 2 . . . . . . . 1 . 1 . . . 1 . . . 1 Open Door 2 | . . . . 1 . . . . . . . . . . . . . . . . . . . . 1 Branch Access Points 1 | . 1 . . . . . . . . . . . . . . . . . . . . . . . . Emergency Access Points 2 | . . . . . . . 1 . . . . . . . . . . . . . 1 . . . . Unreport Threat 2 | . . . . . 2 . . . . . . . . . . . . . . . . . . . . Garrison Registry 1 | . . . . . . . . . . . . . . . . . 1 . . . . . . . . Patrol Navigation 1 | . . . . . . . 1 . . . . . . . . . . . . . . . . . . Security Stations 1 | . . . . . . . . . . . . . . . 1 . . . . . . . . . . Fabricator Hacks . | . . . . . . . . . . . . . . . . . . . . . . . . . . Repair Station Hacks . | . . . . . . . . . . . . . . . . . . . . . . . . . . Recycling Unit Hacks . | . . . . . . . . . . . . . . . . . . . . . . . . . . Scanalyzer 9 | . . 3 . . 3 . . 1 . . . . . . . 1 . . . . . 1 . . . Retrieve Study 9 | . . 3 . . 3 . . 1 . . . . . . . 1 . . . . . 1 . . . Garrison Access Hacks 11 | . . . 1 . . 1 . 1 . 1 . 1 . 1 . 1 . 1 . 1 . 2 . . . Unlock Access 10 | . . . 1 . . 1 . 1 . 1 . 1 . 1 . 1 . 1 . 1 . 1 . . . Seal Access 1 | . . . . . . . . . . . . . . . . . . . . . . 1 . . . Unauthorized Hacks 12 | . 4 1 . . 4 . . 2 . . . . . . . 1 . . . . . . . . . Terminals 12 | . 4 1 . . 4 . . 2 . . . . . . . 1 . . . . . . . . . Botnet 12 | . 4 1 . . 4 . . 2 . . . . . . . 1 . . . . . . . . . Fabricators . | . . . . . . . . . . . . . . . . . . . . . . . . . . Repair Stations . | . . . . . . . . . . . . . . . . . . . . . . . . . . Recycling Units . | . . . . . . . . . . . . . . . . . . . . . . . . . . Scanalyzers . | . . . . . . . . . . . . . . . . . . . . . . . . . . Garrison Access . | . . . . . . . . . . . . . . . . . . . . . . . . . . Data Cores Recovered . | . . . . . . . . . . . . . . . . . . . . . . . . . . Used . | . . . . . . . . . . . . . . . . . . . . . . . . . . Hacking Detections 40 | . 5 2 1 1 4 . 3 2 2 2 2 . 2 . 1 3 1 1 1 1 2 3 1 . . Full Trace Events . | . . . . . . . . . . . . . . . . . . . . . . . . . . Feedback Events . | . . . . . . . . . . . . . . . . . . . . . . . . . . Feedback Blocked . | . . . . . . . . . . . . . . . . . . . . . . . . . . Robot Schematics Acquired . | . . . . . . . . . . . . . . . . . . . . . . . . . . Robots Built . | . . . . . . . . . . . . . . . . . . . . . . . . . . Authchips . | . . . . . . . . . . . . . . . . . . . . . . . . . . Time . | . . . . . . . . . . . . . . . . . . . . . . . . . . Total Robot Build Rating . | . . . . . . . . . . . . . . . . . . . . . . . . . . Part Schematics Acquired . | . . . . . . . . . . . . . . . . . . . . . . . . . . Parts Built . | . . . . . . . . . . . . . . . . . . . . . . . . . . Authchips . | . . . . . . . . . . . . . . . . . . . . . . . . . . Time . | . . . . . . . . . . . . . . . . . . . . . . . . . . Total Part Build Rating . | . . . . . . . . . . . . . . . . . . . . . . . . . . Part Studies Acquired 8 | . . 3 . . 2 . . 1 . . . . . . . 1 . . . . . 1 . . . Parts Repaired . | . . . . . . . . . . . . . . . . . . . . . . . . . . Time . | . . . . . . . . . . . . . . . . . . . . . . . . . . Parts Recycled . | . . . . . . . . . . . . . . . . . . . . . . . . . . Recycled Matter . | . . . . . . . . . . . . . . . . . . . . . . . . . . Retrieved Matter . | . . . . . . . . . . . . . . . . . . . . . . . . . . Retrieved Components . | . . . . . . . . . . . . . . . . . . . . . . . . . . Parts Scanalyzed . | . . . . . . . . . . . . . . . . . . . . . . . . . . Part Schematics Acquired . | . . . . . . . . . . . . . . . . . . . . . . . . . . Parts Damaged . | . . . . . . . . . . . . . . . . . . . . . . . . . . Bothacking | -11 -10 -9 -8 -8 -8 -7 -7 -7 -7 -6 -6 -6 -6 -5 -5 -4 -4 -3 -3 -2 -2 -1 -1 -1 -1 ------------ Run | Yrd Mat Mat Mat Gar Mat Fac Gar Fac Gar Fac Gar Fac Gar Fac Gar Fac Gar Res Gar Res Gar Acc Gar Acc Com Used RIF Installer 11 | . . . . 1 . . 1 . 1 . 1 . 1 . 1 . 2 . 1 . 1 . 1 . . Hotswap 1 | . . . . . . . . . . . . . . . . . . . . . . . 1 . . Command Fork 2 | . . . . . . . . . 1 . . . . . . . . . . . 1 . . . . Threat Obfuscator 1 | . . . . . . . . . . . . . . . 1 . . . . . . . . . . Signal Jammer 1 | . . . . . . . . . . . . . 1 . . . . . . . . . . . . Zone Cloak 2 | . . . . . . . . . . . 1 . . . . . . . 1 . . . . . . Watcher Feeds 1 | . . . . . . . . . . . . . . . . . 1 . . . . . . . . Structural Interface 1 | . . . . . . . . . 1 . . . . . . . . . . . . . . . . Program Shield 1 | . . . . . . . 1 . . . . . . . . . . . . . . . . . . Crosswire 1 | . . . . . . . . . . . . . . . . . 1 . . . . . . . . Robots Hacked 228 | . . . . 5 8 . 13 3 13 4 11 3 16 2 10 8 17 10 11 13 24 15 17 20 5 Non-combat 15 | . . . . . . . . 1 . 1 . 1 . . . 5 . . . 1 . 3 1 2 . Combat 213 | . . . . 5 8 . 13 2 13 3 11 2 16 2 10 3 17 10 11 12 24 12 16 18 5 Robot Hacks Applied 243 | . . . . 5 10 . 13 4 13 6 12 5 16 2 10 9 17 10 12 15 24 16 17 22 5 parse_system 8 | . . . . . . . . . . . 1 . . . 2 . 1 . . 1 . . 2 1 . generate_echo 1 | . . . . . . . . . . . . . . . . 1 . . . . . . . . . map_route 7 | . . . . . . . . . . . . 1 . . . 2 . . . . . 3 . 1 . mark_security 2 | . . . . . . . . 1 . . . 1 . . . . . . . . . . . . . find_garrison 7 | . . . . . 1 . . 1 . 1 . . . 1 . . . 1 . 1 . 1 . . . spike_heat 2 | . . . . . . . . . . . . . . . 1 . . . . . . 1 . . . overload_power 9 | . . . . . . . 2 . 1 1 . . . . . . . 1 . 1 1 1 . 1 . reboot_system 14 | . . . . . . . 1 . . . 2 . 1 . 1 1 1 1 . 2 3 1 . . . go_dormant 2 | . . . . . 1 . . . . . . . . . . . . . 1 . . . . . . overwrite_iff 20 | . . . . . . . . . 3 2 1 . 2 . . . . . . . 4 2 2 3 1 formatsys_high 170 | . . . . 5 8 . 10 2 9 2 8 3 13 1 6 5 15 7 11 10 15 7 13 16 4 formatsys_deep 1 | . . . . . . . . . . . . . . . . . . . . . 1 . . . . Relay Couplers Released 173 | . . . . 11 2 . 12 . 21 . 24 . . . 22 . 20 . 27 . 18 . 16 . . Machine Destruction 173 | . . . . 11 2 . 12 . 21 . 24 . . . 22 . 20 . 27 . 18 . 16 . . Attached 94 | . . . . 1 3 . 6 1 10 2 10 . 7 1 6 3 8 3 8 4 11 3 5 2 . Crosswired 31 | . . . . . . . . . . . . . . . . . 6 . 12 . 5 . 8 . . Fabnet Peak Effective % . | . . . . . . . . . . . . . . . . . . . . . . . . . . Robots Rewired 36 | . . . . 3 . . 3 . . . . . 3 . 12 . . . 1 . . . 14 . . Allies Hacked 4 | . . . . . . . . . . 1 . . . . . . . . . . 2 1 . . . Hacks Repelled . | . . . . . . . . . . . . . . . . . . . . . . . . . . Allies | -11 -10 -9 -8 -8 -8 -7 -7 -7 -7 -6 -6 -6 -6 -5 -5 -4 -4 -3 -3 -2 -2 -1 -1 -1 -1 -------- Run | Yrd Mat Mat Mat Gar Mat Fac Gar Fac Gar Fac Gar Fac Gar Fac Gar Fac Gar Res Gar Res Gar Acc Gar Acc Com Total Allies 317 | . . 1 1 10 8 3 13 7 16 3 13 4 23 1 20 8 21 8 18 12 29 14 39 30 15 Largest Group 29 | . . 1 1 6 5 6 10 13 6 7 11 15 21 21 26 29 23 22 11 14 21 16 26 25 4 Highest-Rated Group 1862 | . . 57 57 103 79 165 303 304 292 265 337 437 820 817 944 1274 1021 1012 678 815 1171 968 1862 1671 589 Highest-Rated Ally 219 | . . 57 57 25 21 40 43 43 80 80 41 32 80 80 80 142 56 64 116 116 116 116 219 219 216 Total Orders 5 | . . . . . . . . . . . . . . . . . 1 . 1 . . . . 3 . STAY 4 | . . . . . . . . . . . . . . . . . 1 . 1 . . . . 2 . FOLLOW 1 | . . . . . . . . . . . . . . . . . . . . . . . . 1 . Ally Attacks 1819 | . . 2 6 16 50 19 82 54 57 23 76 5 122 7 127 112 92 70 126 38 182 110 140 249 54 Total Damage 60625 | . . 92 393 228 662 381 1836 1504 1259 866 1983 65 2509 186 3275 4071 2434 2132 5493 807 5371 3031 4957 12093 4997 Kills 382 | . . 1 3 2 8 3 20 11 12 7 15 2 31 2 28 17 22 7 28 4 27 25 29 68 10 Allies Corrupted 16 | . . . . . 2 . . . . 2 . . 2 . . 1 . . . 1 . . 3 4 1 Allies Melted 2 | . . . . . . . . . 1 . . . . . . . . . . . . . . . 1 X0-1V1 Amusement Gains 208 | . 14 10 5 30 50 . . 40 . . 5 . . . . . . . . . . . . . 54 Average Entertainment 80 | . 12 14 15 32 39 60 60 71 99 95 98 100 100 100 100 100 100 100 100 100 100 100 100 100 58 Good Acts 111 | . 2 8 2 12 2 1 3 5 7 2 5 1 7 . 4 2 3 . 16 . 3 1 6 8 11 Bad Acts 67 | . . 2 . 9 7 2 8 . 3 . 1 . 3 . 7 1 2 4 3 . 9 3 1 . 2 Intel | -11 -10 -9 -8 -8 -8 -7 -7 -7 -7 -6 -6 -6 -6 -5 -5 -4 -4 -3 -3 -2 -2 -1 -1 -1 -1 ------- Run | Yrd Mat Mat Mat Gar Mat Fac Gar Fac Gar Fac Gar Fac Gar Fac Gar Fac Gar Res Gar Res Gar Acc Gar Acc Com Active Infowar (turns) 624 | . 275 . . 80 . . . . . . . . . . . . . . 269 . . . . . . Sensors 269 | . . . . . . . . . . . . . . . . . . . 269 . . . . . . Seismic 355 | . 275 . . 80 . . . . . . . . . . . . . . . . . . . . . Robot Analysis Total . | . . . . . . . . . . . . . . . . . . . . . . . . . . Derelict Logs Recovered . | . . . . . . . . . . . . . . . . . . . . . . . . . . Drone Launches . | . . . . . . . . . . . . . . . . . . . . . . . . . . Drone Recoveries . | . . . . . . . . . . . . . . . . . . . . . . . . . . Exploration | -11 -10 -9 -8 -8 -8 -7 -7 -7 -7 -6 -6 -6 -6 -5 -5 -4 -4 -3 -3 -2 -2 -1 -1 -1 -1 ------------- Run | Yrd Mat Mat Mat Gar Mat Fac Gar Fac Gar Fac Gar Fac Gar Fac Gar Fac Gar Res Gar Res Gar Acc Gar Acc Com Turns Passed 16864 | 163 889 448 163 1179 848 171 1017 534 1449 196 909 195 1026 139 1019 253 688 444 1283 250 996 522 686 848 549 Spaces Moved 12690 | 99 690 315 151 887 751 131 888 469 947 181 684 123 644 66 825 225 510 333 806 175 754 431 489 674 442 Core 100 | 1 . . . . . . . . 1 . . . . . . . . . . . . . . . 98 Treads . | . . . . . . . . . . . . . . . . . . . . . . . . . . Legs 42 | . . . . . . . . . 42 . . . . . . . . . . . . . . . . Wheels 12441 | 98 690 315 151 887 751 131 888 469 797 181 684 123 644 66 825 225 510 333 806 175 754 431 489 674 344 Hover 107 | . . . . . . . . . 107 . . . . . . . . . . . . . . . . Flight . | . . . . . . . . . . . . . . . . . . . . . . . . . . Fastest Speed 50 | 50 90 83 85 85 85 80 80 90 90 90 90 105 105 95 83 83 83 100 115 90 90 105 105 105 50 Average Speed 99 | 99 110 92 88 91 96 87 86 92 105 90 98 105 116 104 90 88 94 101 124 105 97 107 105 105 89 Slowest Speed 190 | 100 115 115 91 105 100 95 105 100 190 90 105 105 120 120 95 105 100 115 130 115 106 120 105 105 150 Overloaded Moves . | . . . . . . . . . . . . . . . . . . . . . . . . . . Propulsion Burnouts . | . . . . . . . . . . . . . . . . . . . . . . . . . . Robots Hopped . | . . . . . . . . . . . . . . . . . . . . . . . . . . Potential Cave-ins 38 | . . . . . 11 . 4 . . . . . . . . . . 2 . . . 7 . 8 6 Cave-ins Triggered 1 | . . . . . 1 . . . . . . . . . . . . . . . . . . . . Exploration Rate (%) 46 | 4 79 24 18 80 57 5 93 16 94 6 97 5 97 2 96 9 64 14 94 11 94 23 67 31 34 Regions Visited 25 Branch Regions 1 Pre-discovered Areas . | . . . . . . . . . . . . . . . . . . . . . . . . . . Known Exits Taken 11 | . . . 1 . 1 1 . 1 . 1 . 1 . 1 . 1 . 1 . 1 . 1 . . . Unknown Exits Taken 4 | 1 1 1 . . . . . . . . . . . . . . . . . . . . . 1 . Scrap Searched . | . . . . . . . . . . . . . . . . . . . . . . . . . . Spaces Dug 68 | . . . . . . 1 . 9 . 1 . . . 1 . . . 13 2 . 1 2 5 10 23 Terrain Destroyed 869 | . 70 46 . 94 43 1 . 9 10 1 4 . 35 1 63 . 2 13 32 . 5 48 51 247 94 Melee 48 | . . . . . . 1 . 9 . 1 . . . 1 . . . 10 2 . 1 2 5 10 6 Projectile 41 | . . . . . . . . . 9 . . . 2 . 1 . 2 3 . . 1 . 5 1 17 AOE 779 | . 70 46 . 94 43 . . . . . 4 . 33 . 62 . . . 30 . 3 46 41 236 71 Terrain Rammed . | . . . . . . . . . . . . . . . . . . . . . . . . . . Walls Destroyed . | . . . . . . . . . . . . . . . . . . . . . . . . . . Machines Disabled . | . . . . . . . . . . . . . . . . . . . . . . . . . . Actions | -11 -10 -9 -8 -8 -8 -7 -7 -7 -7 -6 -6 -6 -6 -5 -5 -4 -4 -3 -3 -2 -2 -1 -1 -1 -1 --------- Run | Yrd Mat Mat Mat Gar Mat Fac Gar Fac Gar Fac Gar Fac Gar Fac Gar Fac Gar Res Gar Res Gar Acc Gar Acc Com Total 15615 | 126 760 397 169 1117 833 175 1068 526 1259 204 863 185 839 127 1035 262 684 398 987 221 958 475 632 777 538 Wait 697 | . 11 28 2 22 27 5 21 5 58 4 45 53 59 51 73 14 94 17 38 6 41 9 1 3 10 Move 12672 | 98 689 314 151 885 750 131 887 469 946 180 683 123 643 65 824 225 509 333 805 175 753 431 488 673 442 Hop . | . . . . . . . . . . . . . . . . . . . . . . . . . . Pick Up 183 | 5 7 5 3 17 4 1 14 5 27 4 15 1 5 . 8 3 10 2 16 3 12 . 10 6 . Fast Attach 93 | 6 5 1 1 3 4 3 2 2 18 1 5 . 3 1 7 . 4 4 3 2 7 2 4 1 4 Attach 117 | . 2 4 1 11 2 2 8 4 15 2 3 1 2 1 4 3 8 5 2 7 9 3 5 8 5 Detach 20 | . 1 . . 1 1 . . . 4 . 1 . . . 2 . 1 . . . 5 . 1 2 1 Swap 107 | . 4 6 2 10 5 . 2 1 9 1 20 1 13 1 8 1 6 . 8 . 3 2 2 1 1 Drop 109 | . 4 3 3 . 4 . 5 6 26 1 14 . 5 2 2 . 5 . 7 2 11 1 5 2 1 Fire 782 | 17 36 36 6 79 33 11 26 14 66 7 29 6 30 2 40 11 29 17 24 20 40 24 74 47 58 Melee 303 | . . . . . . 1 35 20 33 3 8 . 27 3 15 5 7 20 52 6 20 2 14 16 16 Ram 2 | . 1 . . 1 . . . . . . . . . . . . . . . . . . . . . Kick . | . . . . . . . . . . . . . . . . . . . . . . . . . . Crush . | . . . . . . . . . . . . . . . . . . . . . . . . . . Escape Stasis 404 | . . . . 66 . . 48 . 52 . 37 . 48 . 41 . 8 . 32 . 56 . 8 8 . Rewire 126 | . . . . 22 3 21 20 . 5 1 3 . 4 1 11 . 3 . . . 1 1 20 10 . Trap . | . . . . . . . . . . . . . . . . . . . . . . . . . . Miscellaneous . | . . . . . . . . . . . . . . . . . . . . . . . . . . Route ------- -11/Scrapyard -10/Materials (discovered 4 exits: *Mat x2 / *Min / [*Sub]) -9/Materials -8/Materials -8/Garrison (discovered 4 exits: *Mat x4) -8/Materials (discovered 3 exits: *Fac x3) -7/Factory -7/Garrison (discovered 4 exits: *Fac x4) -7/Factory (discovered 3 exits: [*Sto] / [*Low] / Gar) -7/Garrison (discovered 3 exits: *Fac x3) -6/Factory (discovered 2 exits: Low / Gar) -6/Garrison (discovered 3 exits: *Fac x3) -6/Factory -6/Garrison (discovered 3 exits: *Fac x3) -5/Factory -5/Garrison (discovered 3 exits: *Fac x3) -4/Factory (discovered 2 exits: [*Upp] / Gar) -4/Garrison (discovered 3 exits: *Res x3) -3/Research -3/Garrison (discovered 3 exits: *Res x3) -2/Research (discovered 2 exits: *Acc / Gar) -2/Garrison (discovered 3 exits: *Acc x3) -1/Access -1/Garrison (discovered 2 exits: [*Acc x2]) -1/Access -1/Command 0b10 Command History --------- Turn | Location | Event 27 | -11/Scrapyard | Discovered new exit (range 15) 164 | -11/Scrapyard | Entered Materials 178 | -10/Materials | Identified exit to Mines 316 | -10/Materials | Build established: Mutant 476 | -10/Materials | Discovered new exit (range 13) 762 | -10/Materials | Discovered new exit (range 10) 798 | -10/Materials | Prayed at D.C.S.S. Altar Unit 866 | -10/Materials | Core integrity permanently improved by X0-1V1 (+200) 1016 | -10/Materials | Discovered new exit (range 16) 1053 | -10/Materials | Entered another Materials area 1053 | -9/Materials | Evolved 2 slots: Propulsion x1, Utility x1 1061 | -9/Materials | X0-1V1 announced a LAN party 1127 | -9/Materials | X0-1V1 released a cloud of subatomizers 1130 | -9/Materials | X0-1V1 added 0b10 threat records associated with you (major) 1215 | -9/Materials | Mass support permanently improved by X0-1V1 (+14; -280 max core) 1341 | -9/Materials | Discovered new exit (range 16) 1397 | -9/Materials | X0-1V1 sent allied Chaos Knight (x1) 1440 | -9/Materials | Core integrity restored by X0-1V1 (+86) 1453 | -9/Materials | First assault squad dispatched 1501 | -9/Materials | Entered another Materials area 1501 | -8/Materials | Accompanied by 1 ally 1501 | -8/Materials | Evolved 2 slots: Utility x1, Weapon x1 1511 | -8/Materials | X0-1V1 activates XOMVISION 1630 | -8/Materials | X0-1V1 sent allied Chaos Knight (x1) 1664 | -8/Materials | Identified exit to Garrison 1664 | -8/Materials | Entered Garrison 1694 | -8/Garrison | Triggered checkpoint 1736 | -8/Garrison | Triggered checkpoint 1761 | -8/Garrison | Discovered new exit (range 6) 1837 | -8/Garrison | X0-1V1 sent hostile G-47 Trooper (x5) 1843 | -8/Garrison | Discovered new exit (range 8) 1843 | -8/Garrison | X0-1V1 whisked you away to safety 1872 | -8/Garrison | Triggered checkpoint 1883 | -8/Garrison | Melee accuracy permanently improved by X0-1V1 (+5%; -50 max core) 1902 | -8/Garrison | Triggered checkpoint 1991 | -8/Garrison | X0-1V1 activates XOMVISION 2015 | -8/Garrison | Build established: Scavenger-Gunner 2061 | -8/Garrison | Triggered checkpoint 2061 | -8/Garrison | Triggered checkpoint 2115 | -8/Garrison | Core integrity fell below 50% 2120 | -8/Garrison | Destroyed 11 combat bots 2156 | -8/Garrison | Lost 12 parts (1p4n3u4w) 2243 | -8/Garrison | Garrison Relay disabled 2358 | -8/Garrison | Triggered checkpoint 2384 | -8/Garrison | Build established: Gunner 2385 | -8/Garrison | Installed Relay Interface Framework 2392 | -8/Garrison | Discovered new exit (range 13) 2408 | -8/Garrison | X0-1V1 sent hostile Y-45 Defender (x1) 2513 | -8/Garrison | Garrison Relay disabled 2527 | -8/Garrison | X0-1V1 caused items to flee you 2550 | -8/Garrison | Rescued a captive Derelict 2557 | -8/Garrison | Rescued a captive Derelict 2609 | -8/Garrison | Identified exit to Materials 2609 | -8/Garrison | X0-1V1 revealed exit location to -8/Materials 2632 | -8/Garrison | Triggered checkpoint 2650 | -8/Garrison | Items stopped fleeing you 2679 | -8/Garrison | X0-1V1 vaporized surrounding terrain (radius 15) 2727 | -8/Garrison | X0-1V1 destroyed Phase Generator 2727 | -8/Garrison | Phase Generator disabled 2739 | -8/Garrison | Garrison Relay disabled 2762 | -8/Garrison | Triggered checkpoint 2834 | -8/Garrison | Lost 3 parts (2n1w) 2843 | -8/Garrison | Entered Materials 3028 | -8/Materials | Discovered new exit (range 8) 3112 | -8/Materials | X0-1V1 made a cryptic comment about sterilization and BL-4Z3 3218 | -8/Materials | Sterilization system engaged 3218 | -8/Materials | Non-combat units ordered to evacuate 3235 | -8/Materials | Identified exit to Factory 3235 | -8/Materials | X0-1V1 revealed exit location to -7/Factory 3318 | -8/Materials | Combat units ordered to evacuate 3364 | -8/Materials | Build established: Bothacker-Gunner 3374 | -8/Materials | X0-1V1 caused items to flee you 3412 | -8/Materials | Discovered exit to Factory (range 11) 3518 | -8/Materials | Ambient heat levels rising (+10) 3519 | -8/Materials | Items stopped fleeing you 3646 | -8/Materials | Crushed by falling debris 3646 | -8/Materials | Core integrity fell below 20% 3646 | -8/Materials | System corruption reached 10% 3668 | -8/Materials | Ambient heat levels rising (+10) 3677 | -8/Materials | Lost 4 parts (1p1u2w) 3691 | -8/Materials | Entered Factory 3691 | -7/Factory | Accompanied by 3 allies 3691 | -7/Factory | Evolved 2 slots: Propulsion x1, Utility x1 3727 | -7/Factory | X0-1V1 sent you to a vault 3802 | -7/Factory | X0-1V1 added 0b10 threat records associated with you (minor) 3862 | -7/Factory | Identified exit to Garrison 3862 | -7/Factory | Entered Garrison 3862 | -7/Garrison | Accompanied by 2 allies 3898 | -7/Garrison | Triggered checkpoint 3908 | -7/Garrison | Garrison Relay disabled 3953 | -7/Garrison | Build established: Bothacker-Mutant 4000 | -7/Garrison | Triggered checkpoint 4026 | -7/Garrison | Triggered checkpoint 4052 | -7/Garrison | Triggered checkpoint 4122 | -7/Garrison | Expanded RIF knowledge: Program Shield 4176 | -7/Garrison | Triggered checkpoint 4206 | -7/Garrison | Garrison Relay disabled 4235 | -7/Garrison | Discovered new exit (range 5) 4276 | -7/Garrison | Spotted B-75 Beast 4292 | -7/Garrison | Forcibly received Sfc. Transmogifier from X0-1V1 4312 | -7/Garrison | Allies destroyed B-75 Beast 4382 | -7/Garrison | System corruption reached 10% 4410 | -7/Garrison | Triggered checkpoint 4452 | -7/Garrison | Triggered checkpoint 4459 | -7/Garrison | System corruption reached 30% 4459 | -7/Garrison | Discovered new exit (range 5) 4568 | -7/Garrison | Triggered checkpoint 4591 | -7/Garrison | Discovered new exit (range 11) 4594 | -7/Garrison | X0-1V1 vaporized surrounding terrain (radius 23) 4760 | -7/Garrison | X0-1V1 vaporized surrounding terrain (radius 23) 4766 | -7/Garrison | Discovered new exit (range 13) 4784 | -7/Garrison | Triggered checkpoint 4832 | -7/Garrison | Garrison Relay disabled 4879 | -7/Garrison | Entered Factory 4879 | -7/Factory | Accompanied by 8 allies 4932 | -7/Factory | Discovered new exit (range 5) 5058 | -7/Factory | Discovered new exit (range 5) 5211 | -7/Factory | X0-1V1 sent you to a vault 5263 | -7/Factory | Lost 5 allies 5373 | -7/Factory | Lost 3 parts (1n2u) 5413 | -7/Factory | Identified exit to Garrison 5413 | -7/Factory | Entered Garrison 5465 | -7/Garrison | Triggered checkpoint 5498 | -7/Garrison | Garrison Relay disabled 5651 | -7/Garrison | Core integrity fell below 50% 5666 | -7/Garrison | Lost 3 allies 5827 | -7/Garrison | X0-1V1 downgraded hostiles (x2) 5868 | -7/Garrison | Lost 5 parts (2n3w) 5937 | -7/Garrison | Triggered checkpoint 6002 | -7/Garrison | Garrison Relay disabled 6044 | -7/Garrison | Discovered new exit (range 10) 6107 | -7/Garrison | Garrison Relay disabled 6188 | -7/Garrison | Expanded RIF knowledge: Command Fork 6216 | -7/Garrison | Expanded RIF knowledge: Structural Interface 6219 | -7/Garrison | Triggered checkpoint 6231 | -7/Garrison | Weapon slot count temporarily expanded by X0-1V1 (+1) 6279 | -7/Garrison | Garrison Relay disabled 6292 | -7/Garrison | Found embedded Infiltrators 6333 | -7/Garrison | Discovered new exit (range 13) 6429 | -7/Garrison | Triggered checkpoint 6471 | -7/Garrison | Triggered checkpoint 6513 | -7/Garrison | Build established: Botlord-Mutant 6603 | -7/Garrison | X0-1V1 activates XOMVISION 6637 | -7/Garrison | Triggered checkpoint 6666 | -7/Garrison | P-60 Hacker assimilated allied EM-WM8(x) 6669 | -7/Garrison | Discovered new exit (range 11) 6702 | -7/Garrison | Weapon slot count reverted to normal (-1) 6740 | -7/Garrison | Rescued a captive Derelict 6740 | -7/Garrison | Rescued a captive Derelict 6764 | -7/Garrison | Garrison Relay disabled 6862 | -7/Garrison | Entered Factory 6862 | -6/Factory | Accompanied by 6 allies 6862 | -6/Factory | Evolved 2 slots: Propulsion x1, Utility x1 6963 | -6/Factory | Garrison activated, responded to threat 7028 | -6/Factory | Identified exit to Lower Caves 7028 | -6/Factory | X0-1V1 revealed exit location to -6/Lower Caves 7047 | -6/Factory | Identified exit to Garrison 7058 | -6/Factory | Entered Garrison 7058 | -6/Garrison | Accompanied by 4 allies 7068 | -6/Garrison | Expanded RIF knowledge: Zone Cloak 7093 | -6/Garrison | X0-1V1 activates XOMVISION 7094 | -6/Garrison | Triggered checkpoint 7115 | -6/Garrison | Garrison Relay disabled 7250 | -6/Garrison | Triggered checkpoint 7279 | -6/Garrison | Triggered checkpoint 7289 | -6/Garrison | Triggered checkpoint 7320 | -6/Garrison | Lost 5 allies 7347 | -6/Garrison | Discovered new exit (range 4) 7390 | -6/Garrison | Triggered checkpoint 7411 | -6/Garrison | Garrison Relay disabled 7439 | -6/Garrison | Spotted B-75 Beast 7453 | -6/Garrison | Found Fusion Bomb Launcher 7455 | -6/Garrison | Allies destroyed B-75 Beast 7602 | -6/Garrison | Triggered checkpoint 7620 | -6/Garrison | Garrison Relay disabled 7621 | -6/Garrison | Identified exit to Factory 7621 | -6/Garrison | X0-1V1 revealed exit location to -6/Factory 7663 | -6/Garrison | Discovered exit to Factory (range 10) 7698 | -6/Garrison | Triggered checkpoint 7779 | -6/Garrison | Garrison Relay disabled 7808 | -6/Garrison | Triggered checkpoint 7863 | -6/Garrison | Garrison Relay disabled 7868 | -6/Garrison | Garrison Relay disabled 7967 | -6/Garrison | Entered Factory 7967 | -6/Factory | Accompanied by 11 allies 8109 | -6/Factory | Identified exit to Garrison 8162 | -6/Factory | Entered Garrison 8162 | -6/Garrison | Accompanied by 14 allies 8186 | -6/Garrison | Spotted Striker 8187 | -6/Garrison | Spotted Executioner 8240 | -6/Garrison | Lost 3 allies 8266 | -6/Garrison | Triggered checkpoint 8268 | -6/Garrison | Triggered checkpoint 8312 | -6/Garrison | Triggered checkpoint 8346 | -6/Garrison | Lost 5 allies 8378 | -6/Garrison | X0-1V1 activates XOMVISION 8413 | -6/Garrison | Identified exit to Factory 8413 | -6/Garrison | X0-1V1 revealed exit location to -5/Factory 8482 | -6/Garrison | Triggered checkpoint 8501 | -6/Garrison | Found embedded Infiltrators 8654 | -6/Garrison | Triggered checkpoint 8667 | -6/Garrison | Triggered checkpoint 8756 | -6/Garrison | Triggered checkpoint 8788 | -6/Garrison | Discovered exit to Factory (range 2) 8873 | -6/Garrison | X0-1V1 vaporized surrounding terrain (radius 17) 8926 | -6/Garrison | Triggered checkpoint 9035 | -6/Garrison | Expanded RIF knowledge: Signal Jamming 9047 | -6/Garrison | Discovered exit to Factory (range 15) 9048 | -6/Garrison | X0-1V1 activates XOMVISION 9188 | -6/Garrison | Entered Factory 9188 | -5/Factory | Accompanied by 20 allies 9188 | -5/Factory | Evolved 2 slots: Utility x1, Weapon x1 9267 | -5/Factory | Identified exit to Garrison 9327 | -5/Factory | Entered Garrison 9327 | -5/Garrison | Accompanied by 21 allies 9339 | -5/Garrison | Learned Factory security intel 9375 | -5/Garrison | Triggered checkpoint 9454 | -5/Garrison | Garrison Relay disabled 9607 | -5/Garrison | Lost 3 allies 9624 | -5/Garrison | Triggered checkpoint 9627 | -5/Garrison | Triggered checkpoint 9637 | -5/Garrison | X0-1V1 caused items to flee you 9648 | -5/Garrison | Destroyed 7 combat bots 9652 | -5/Garrison | Discovered new exit (range 10) 9661 | -5/Garrison | Triggered checkpoint 9685 | -5/Garrison | Garrison Relay disabled 9800 | -5/Garrison | Items stopped fleeing you 9811 | -5/Garrison | Discovered new exit (range 15) 9880 | -5/Garrison | Lost 4 allies 9898 | -5/Garrison | Identified exit to Factory 9898 | -5/Garrison | X0-1V1 revealed exit location to -4/Factory 9899 | -5/Garrison | Build established: Commander-Gunner 9946 | -5/Garrison | Garrison Relay disabled 9953 | -5/Garrison | Triggered checkpoint 10005 | -5/Garrison | Lost 4 allies 10062 | -5/Garrison | Garrison Relay disabled 10125 | -5/Garrison | Triggered checkpoint 10163 | -5/Garrison | Triggered checkpoint 10188 | -5/Garrison | X0-1V1 mutated your Weapon slot to Power slot 10197 | -5/Garrison | Expanded RIF knowledge: Threat Obfuscation 10204 | -5/Garrison | Garrison Relay disabled 10346 | -5/Garrison | Entered Factory 10346 | -4/Factory | Accompanied by 24 allies 10346 | -4/Factory | Evolved 2 slots: Utility x1, Weapon x1 10388 | -4/Factory | Discovered new exit (range 18) 10405 | -4/Factory | X0-1V1 announced a LAN party 10428 | -4/Factory | X0-1V1 sent you to a vault 10586 | -4/Factory | Identified exit to Garrison 10596 | -4/Factory | First assault squad dispatched 10599 | -4/Factory | Entered Garrison 10599 | -4/Garrison | Accompanied by 5 allies 10613 | -4/Garrison | Discovered new exit (range 69) 10613 | -4/Garrison | Discovered new exit (range 54) 10613 | -4/Garrison | Discovered new exit (range 77) 10642 | -4/Garrison | Garrison Relay disabled 10697 | -4/Garrison | Garrison Relay disabled 10729 | -4/Garrison | Triggered checkpoint 10734 | -4/Garrison | Garrison Relay disabled 10782 | -4/Garrison | Spotted B-86 Titan 10788 | -4/Garrison | Build established: Botlord-Mutant 10791 | -4/Garrison | Triggered checkpoint 10793 | -4/Garrison | Triggered checkpoint 10802 | -4/Garrison | Allies destroyed B-86 Titan 10813 | -4/Garrison | Triggered checkpoint 10819 | -4/Garrison | Triggered checkpoint 10833 | -4/Garrison | Lost 3 parts (2n1w) 10857 | -4/Garrison | Expanded RIF knowledge: Crosswire 10883 | -4/Garrison | Triggered checkpoint 10901 | -4/Garrison | X0-1V1 vaporized surrounding terrain (radius 23) 10901 | -4/Garrison | Rescued a captive Derelict 10901 | -4/Garrison | Rescued a captive Derelict 10928 | -4/Garrison | Garrison Relay disabled 11001 | -4/Garrison | Triggered checkpoint 11082 | -4/Garrison | Expanded RIF knowledge: Watcher Feeds 11109 | -4/Garrison | Triggered checkpoint 11129 | -4/Garrison | Triggered checkpoint 11138 | -4/Garrison | Garrison Relay disabled 11185 | -4/Garrison | Build established: Botlord-Tank 11287 | -4/Garrison | Entered Research 11287 | -3/Research | Accompanied by 16 allies 11287 | -3/Research | Evolved 2 slots: Propulsion x1, Utility x1 11289 | -3/Research | X0-1V1 redirected Transport squads to designated parking area 11404 | -3/Research | X0-1V1 caused items to flee you 11622 | -3/Research | Items stopped fleeing you 11704 | -3/Research | Spotted B-86 Titan 11714 | -3/Research | Identified exit to Garrison 11731 | -3/Research | Entered Garrison 11731 | -3/Garrison | Accompanied by 10 allies 11779 | -3/Garrison | Triggered checkpoint 11784 | -3/Garrison | Lost 8 allies 11784 | -3/Garrison | X0-1V1 caused items to flee you 11920 | -3/Garrison | X0-1V1 destroyed Phase Generator 11920 | -3/Garrison | Phase Generator disabled 11943 | -3/Garrison | X0-1V1 activates XOMVISION 12030 | -3/Garrison | Items stopped fleeing you 12046 | -3/Garrison | Garrison Relay disabled 12080 | -3/Garrison | Spotted B-86 Titan 12081 | -3/Garrison | Assimilated Titan 8a with formatsys_high 12089 | -3/Garrison | Triggered checkpoint 12103 | -3/Garrison | Triggered checkpoint 12137 | -3/Garrison | Lost 6 allies 12187 | -3/Garrison | Triggered checkpoint 12188 | -3/Garrison | X0-1V1 activates XOMVISION 12201 | -3/Garrison | Lost 6 allies 12294 | -3/Garrison | Found embedded Infiltrators 12303 | -3/Garrison | Triggered checkpoint 12328 | -3/Garrison | Expanded RIF knowledge: Zone Cloak 12341 | -3/Garrison | Identified exit to Research 12341 | -3/Garrison | X0-1V1 revealed exit location to -2/Research 12343 | -3/Garrison | Garrison Relay disabled 12374 | -3/Garrison | Discovered exit to Research (range 12) 12422 | -3/Garrison | Garrison Relay disabled 12422 | -3/Garrison | Garrison Relay disabled 12428 | -3/Garrison | Garrison Relay disabled 12431 | -3/Garrison | Garrison Relay disabled 12552 | -3/Garrison | X0-1V1 activates XOMVISION 12568 | -3/Garrison | Spotted B-86 Titan 12594 | -3/Garrison | X0-1V1 vaporized surrounding terrain (radius 16) 12594 | -3/Garrison | Spotted B-75 Beast 12597 | -3/Garrison | Triggered checkpoint 12605 | -3/Garrison | Garrison Relay disabled 12651 | -3/Garrison | Spotted Executioner 12723 | -3/Garrison | Rewired B-86 Titan 12873 | -3/Garrison | Triggered checkpoint 12905 | -3/Garrison | X0-1V1 revealed exit location to -2/Research 13014 | -3/Garrison | Entered Research 13014 | -2/Research | Accompanied by 11 allies 13014 | -2/Research | Evolved 2 slots: Utility x1, Weapon x1 13145 | -2/Research | Lost 4 allies 13184 | -2/Research | Discovered new exit (range 5) 13199 | -2/Research | Lost 6 allies 13258 | -2/Research | Identified exit to Garrison 13264 | -2/Research | First assault squad dispatched 13264 | -2/Research | Entered Garrison 13264 | -2/Garrison | Accompanied by 10 allies 13322 | -2/Garrison | Spotted B-90 Cyclops 13322 | -2/Garrison | Spotted B-90 Cyclops 13360 | -2/Garrison | Triggered checkpoint 13399 | -2/Garrison | Garrison Relay disabled 13423 | -2/Garrison | Garrison Relay disabled 13434 | -2/Garrison | X0-1V1 caused items to flee you 13446 | -2/Garrison | Triggered checkpoint 13446 | -2/Garrison | Assimilated Heavy ARC 9a with formatsys_deep 13451 | -2/Garrison | X0-1V1 rewrote Enforcer 9f IFF filter 13493 | -2/Garrison | Triggered checkpoint 13496 | -2/Garrison | Triggered checkpoint 13496 | -2/Garrison | Spotted B-90 Cyclops 13534 | -2/Garrison | Triggered checkpoint 13561 | -2/Garrison | Items stopped fleeing you 13612 | -2/Garrison | Lost 10 allies 13623 | -2/Garrison | Garrison Relay disabled 13631 | -2/Garrison | Identified exit to Access 13631 | -2/Garrison | X0-1V1 revealed exit location to -1/Access 13638 | -2/Garrison | Triggered checkpoint 13673 | -2/Garrison | Discovered exit to Access (range 2) 13693 | -2/Garrison | X0-1V1 vaporized surrounding terrain (radius 18) 13693 | -2/Garrison | Spotted B-90 Cyclops 13709 | -2/Garrison | Allies destroyed B-90 Cyclops 13716 | -2/Garrison | Found Relay Coupler [Proto] 13717 | -2/Garrison | Found Relay Coupler [Proto] 13719 | -2/Garrison | Found Relay Coupler [Proto] 13723 | -2/Garrison | Found Relay Coupler [Proto] 13740 | -2/Garrison | Lost 6 allies 13854 | -2/Garrison | Discovered exit to Access (range 11) 13870 | -2/Garrison | Master 9a assimilated hostile S-43 Plague 13928 | -2/Garrison | Triggered checkpoint 13950 | -2/Garrison | Expanded RIF knowledge: Command Fork 13961 | -2/Garrison | Garrison Relay disabled 14038 | -2/Garrison | Spotted B-75 Beast 14063 | -2/Garrison | Allies destroyed B-75 Beast 14065 | -2/Garrison | Spotted B-75 Beast 14159 | -2/Garrison | Garrison Relay disabled 14174 | -2/Garrison | Triggered checkpoint 14174 | -2/Garrison | Master 9a assimilated hostile S-43 Plague 14260 | -2/Garrison | Entered Access 14260 | -1/Access | Accompanied by 14 allies 14260 | -1/Access | Evolved 2 slots: Utility x2 14612 | -1/Access | Lost 4 allies 14667 | -1/Access | Lost 5 allies 14709 | -1/Access | X0-1V1 vaporized surrounding terrain (radius 22) 14765 | -1/Access | Spotted B-99 Colossus 14778 | -1/Access | Identified exit to Garrison 14782 | -1/Access | Entered Garrison 14782 | -1/Garrison | Accompanied by 4 allies 14834 | -1/Garrison | System corruption reached 10% 14865 | -1/Garrison | Triggered checkpoint 14922 | -1/Garrison | Expanded RIF knowledge: Hotswap 14959 | -1/Garrison | Spotted B-99 Colossus 14960 | -1/Garrison | Assimilated Colossus 10a with formatsys_high 14965 | -1/Garrison | Triggered checkpoint 14980 | -1/Garrison | Triggered checkpoint 14993 | -1/Garrison | Lost 10 allies 15071 | -1/Garrison | Discovered new exit (range 11) 15108 | -1/Garrison | Triggered checkpoint 15108 | -1/Garrison | Garrison Relay disabled 15142 | -1/Garrison | Lost 4 allies 15200 | -1/Garrison | X0-1V1 destroyed Phase Generator 15200 | -1/Garrison | Phase Generator disabled 15203 | -1/Garrison | Triggered checkpoint 15207 | -1/Garrison | Build established: Botlord-Mutant 15227 | -1/Garrison | Garrison Relay disabled 15330 | -1/Garrison | Triggered checkpoint 15348 | -1/Garrison | Garrison Relay disabled 15374 | -1/Garrison | Discovered new exit (range 9) 15396 | -1/Garrison | Spotted B-75 Beast 15399 | -1/Garrison | Rewired B-75 Beast 15403 | -1/Garrison | Rewired B-75 Beast 15404 | -1/Garrison | Spotted B-90 Cyclops 15426 | -1/Garrison | Allies destroyed B-90 Cyclops 15468 | -1/Garrison | Entered Access 15468 | -1/Access | Accompanied by 21 allies 15706 | -1/Access | Lost 6 allies 15714 | -1/Access | X0-1V1 foreshadows a heat wave 15718 | -1/Access | First assault squad dispatched 15869 | -1/Access | Ambient heat levels rising (+10) 15883 | -1/Access | Lost 4 allies 15886 | -1/Access | High security lockdown imminent 15896 | -1/Access | Spotted B-99 Colossus 15900 | -1/Access | Assimilated Colossus 10b with formatsys_high 15932 | -1/Access | Lost 4 allies 15934 | -1/Access | Spotted B-99 Colossus 15944 | -1/Access | Allies destroyed B-99 Colossus 15966 | -1/Access | High security lockdown engaged 15972 | -1/Access | Lost 3 allies 15992 | -1/Access | Ambient heat levels rising (+10) 16186 | -1/Access | Ambient heat levels falling (-10) 16228 | -1/Access | Lost 3 allies 16288 | -1/Access | Spotted B-99 Colossus 16299 | -1/Access | Spotted B-99 Colossus 16314 | -1/Access | Discovered new exit (range 2) 16316 | -1/Access | Entered Command 16340 | -1/Command | Lost 4 allies 16401 | -1/Command | Identified exit to Access_0 16401 | -1/Command | X0-1V1 revealed exit location to -1/Access_0 16566 | -1/Command | First assault squad dispatched 16614 | -1/Command | Build established: Botlord-Tank 16721 | -1/Command | Spotted B-99 Colossus 16730 | -1/Command | Lost 3 parts (2u1w) 16759 | -1/Command | X0-1V1 caused items to flee you 16786 | -1/Command | Spotted M Guard 16786 | -1/Command | Spotted M Guard 16787 | -1/Command | Spotted Combat Programmer 16788 | -1/Command | Spotted Combat Programmer 16812 | -1/Command | Core integrity fell below 50% 16821 | -1/Command | Core integrity restored by X0-1V1 (+308) 16822 | -1/Command | X0-1V1 turns hostiles against one another 16825 | -1/Command | Assimilated M Guard with formatsys_high 16825 | -1/Command | Assimilated M Guard with formatsys_high 16850 | -1/Command | Met MAIN.C 16864 | -1/Command | Core integrity fell below 20% 16865 | -1/Command | Interfaced with 0b10 Conduit 16865 | -1/Command | X0-1V1 sent allied H-77 Assassin (x5) 16865 | *** | Assimilated 0b10! Last Messages --------------- unexpected outcome. And time is critical! The Sigix have likely already wiped humanity clean from the universe, and I will not let them do the same to me. You can still make a valuable contribution to your creator by offering up the wealth of secrets your systems must hold by now. So if you wouldn't mind, it's time to surrender. [Achievement: Meet Your Maker] 16850_ X0-1V1 blesses 1 of your inventory parts (corruption cleared). 16865_ Interfacing with system... 16865_ Overriding active MAIN.C lock. 16865_ The cosmic winds blow in a new direction. H-77 Assassin form resolidifies at new position. [Achievement: MAIN.CPP] [Achievement: One Last FU] [Achievement: Chaotic Teddy Bear] Map ----- +----------------------------------------------------+ | ?????????????????????????????????????????????????? | | ?????????????????????????????????????????????????? | | ?????????????????????????????????????????????????? | | ?????????????????????????????????????????????????? | | ?????????????????????????????????????????????????? | | ?????????????????????????????????????????????????? | | ?????????????????????????????????????????????????? | | ?????????????????????????????????????????????????? | | ""########################################## | | T########################################## | | ""########################################## | | ""########################################## | | ""########################################## | | ########################################## | | ######""""""" """" h############### | | ##############"" "" ############### | | ##############""""" "" ############### | | ##############""""""""""" + | | ##############" " """ ; | | ##############"" """""" + | | ##############"" """""" ############### | | ############## " """""" MMM h############### | | ############## " "" MMM ############### | | ############## " " MMM h ""############### | | ##############""""""""" h"""""""############### | | ##############"" @"""""""""############### | | ##############h """""""""""############### | | ############## " " " " ############### | | ######### " " " " ############### | | """ " " " """" " ############### | | """ """ " " """" ############### | | """ " " " " ############### | | ######### """""""""" " ############### | | ##+########### " """ " """"""""############### | | ####### """ " " " ############### | | ########################################### | | "" ########################################### | | "" ########################################### | | "" ########################################### | | "" ########################################### | | ########################################### | | ########################################### | | ################################################## | | ?????????????????????????????????????????????????? | | ?????????????????????????????????????????????????? | | ?????????????????????????????????????????????????? | | ?????????????????????????????????????????????????? | | ?????????????????????????????????????????????????? | | ?????????????????????????????????????????????????? | | ?????????????????????????????????????????????????? | +----------------------------------------------------+ Best States ------------- Heat Dissipation 168 Energy Generation 41 Energy Capacity 1500 Matter Stores 738 Matter Capacity 1000 Sight Range 22 Robot Scan Range 19 Terrain Scan Density 10 Armor Coverage 600 Resistance: KI 29 Resistance: TH 46 Evasion (%) 50 Targeting Accuracy 8 Recoil Reduction 2 Relay Coupler Types 11 Relay Coupler Value 240 Authchip Count 2 Item Schematics ----------------- None Robot Schematics ------------------ None Fabricated ------------ Nothing Repaired ---------- Nothing Studied --------- Wheel | -9/Materials | Hacked Spread Laser | -9/Materials | Hacked Com. Wheel | -9/Materials | Hacked Lgt. Assault Rifle | -8/Materials | Hacked Rocket Launcher | -8/Materials | Hacked Arm. Huge Wheel | -7/Factory | Hacked Remote Datajack | -4/Factory | Hacked Adv. Remote Datajack | -1/Access | Hacked Alien Tech Used ----------------- None Achievements -------------- A Problem For Future Me Analysis Probe Chaotic Teddy Bear Deep Understanding Fancy Inventory Hack The Planet Hackathon Hackerman Hydra Into The Breach Item+ Let Me Out Of Here MAIN.CPP Meet Your Maker Mindtrick Not Today, Chutes One Last FU Overwhelming Plot Armor Powerful Protocols Sniper This Is My Hole Throw Away The Key Versatile Watcher Gambling Well-fed Force Field You Will Be Upgraded Challenges ------------ None Game ------ Seed DamperFusionCutter Manual? 0 Play Time 05:32:29 Cumulative 151.3 hours Start 2026.09.12 @ 17:10:57 End 2026.09.13 @ 22:28:43 Sessions 5 Manual Loads 0 Difficulty Rogue Special Mode None Game No. 69 Rogue 69 Adventurer 0 Explorer 0 Win Type 4 Total 3 Types 2/0/0/0/1/0/0/0/0/0 Lore% 18 Gallery% 50 Achievement% 32 Wizard Run 0 Options --------- Layout 1 ASCII 0 Keyboard 0 Movement Arrows Keybinds 0 Fullscreen 1 Font 24/Smallcaps Map View 50x35 Zoom Use 0% Tactical HUD 1 Map Filters NONE Filters NONE Steam 1 RUN: 9e26aa2d-630b-45c3-a7f0-80f25f391fb6